[Event "Titled Tuesday Blitz February 01 B 2022"]
[White "Kosakowski, Jakub"]
[Black "Vovk, Orest"]
[WhiteFideId "1185080"]
[BlackFideId "14113490"]
[WhiteElo "2476"]
[BlackElo "2203"]
[Result "1-0"]
[Round "08"]
[TimeControl "180+1"]
[Date "2022.02.01"]
[WhiteClock "0:00:28"]
[BlackClock "0:00:05"]

1. f3 {[%clk 0:03:00]}  g5 {[%clk 0:02:58]} 2. d4 {[%clk 0:02:56]}  h6 {[%clk 0:02:53]} 3. e4 {[%clk 0:02:55]}  Bg7 {[%clk 0:02:53]} 4. Nc3 {[%clk 0:02:54]}  c5 {[%clk 0:02:52]} 5. Be3 {[%clk 0:02:54]}  cxd4 {[%clk 0:02:46]} 6. Bxd4 {[%clk 0:02:55]}  Bxd4 {[%clk 0:02:46]} 7. Qxd4 {[%clk 0:02:55]}  Nf6 {[%clk 0:02:46]} 8. O-O-O {[%clk 0:02:55]}  Nc6 {[%clk 0:02:46]} 9. Qd2 {[%clk 0:02:56]}  Qa5 {[%clk 0:02:45]} 10. h4 {[%clk 0:02:53]}  g4 {[%clk 0:02:32]} 11. Nge2 {[%clk 0:02:45]}  d6 {[%clk 0:02:28]} 12. Nf4 {[%clk 0:02:43]}  Be6 {[%clk 0:02:21]} 13. Kb1 {[%clk 0:02:40]}  a6 {[%clk 0:01:52]} 14. Be2 {[%clk 0:02:17]}  gxf3 {[%clk 0:01:42]} 15. gxf3 {[%clk 0:02:18]}  Rc8 {[%clk 0:01:19]} 16. Rhg1 {[%clk 0:02:09]}  Ne5 {[%clk 0:01:15]} 17. Nxe6 {[%clk 0:01:40]}  fxe6 {[%clk 0:01:12]} 18. f4 {[%clk 0:01:41]}  Nc4 {[%clk 0:01:07]} 19. Bxc4 {[%clk 0:01:40]}  Rxc4 {[%clk 0:01:07]} 20. Qd3 {[%clk 0:01:41]}  Qc5 {[%clk 0:00:42]} 21. e5 {[%clk 0:01:39]}  Nd5 {[%clk 0:00:20]} 22. Nxd5 {[%clk 0:01:22]}  exd5 {[%clk 0:00:19]} 23. e6 {[%clk 0:01:08]}  Rxf4 {[%clk 0:00:09]} 24. a3 {[%clk 0:00:50]}  Kd8 {[%clk 0:00:09]} 25. Rg7 {[%clk 0:00:47]}  Rf2 {[%clk 0:00:06]} 26. Qg6 {[%clk 0:00:45]}  d4 {[%clk 0:00:03]} 27. Rf7 {[%clk 0:00:33]}  Rxf7 {[%clk 0:00:02]} 28. exf7 {[%clk 0:00:33]}  Kc7 {[%clk 0:00:02]} 29. Qg8 {[%clk 0:00:31]}  Qh5 {[%clk 0:00:02]} 30. Rc1 {[%clk 0:00:28]}  Qe5 {[%clk 0:00:02]} 31. f8=Q {[%clk 0:00:28]}  Rxg8 {[%clk 0:00:02]} 32. Qxg8 {[%clk 0:00:29]}  d5 {[%clk 0:00:02]} 33. Qg6 {[%clk 0:00:28]}  Kc8 {[%clk 0:00:02]} 34. Qxh6 {[%clk 0:00:28]}  Qe4 {[%clk 0:00:02]} 35. Qg5 {[%clk 0:00:28]}  Kd7 {[%clk 0:00:02]} 36. h5 {[%clk 0:00:27]}  e6 {[%clk 0:00:03]} 37. h6 {[%clk 0:00:27]}  Qe3 {[%clk 0:00:04]} 38. Qxe3 {[%clk 0:00:27]}  dxe3 {[%clk 0:00:05]} 39. h7 {[%clk 0:00:28]} 1-0


[Site "https://www.chess.com"]

[Event "Titled Tuesday Blitz February 01 B 2022"]
[White "Koutlas, Nikolaos"]
[Black "Cunha, Lucas Aguiar"]
[WhiteFideId "25827138"]
[BlackFideId "2125404"]
[WhiteElo "1610"]
[BlackElo "2361"]
[Result "0-1"]
[Round "08"]
[TimeControl "180+1"]
[Date "2022.02.01"]
[WhiteClock "0:00:02"]
[BlackClock "0:01:03"]

1. e4 {[%clk 0:03:00]}  c5 {[%clk 0:02:59]} 2. Nf3 {[%clk 0:03:00]}  e6 {[%clk 0:02:59]} 3. d4 {[%clk 0:03:00]}  cxd4 {[%clk 0:03:00]} 4. Nxd4 {[%clk 0:03:01]}  Nc6 {[%clk 0:03:00]} 5. Nc3 {[%clk 0:03:01]}  Qc7 {[%clk 0:03:00]} 6. Be2 {[%clk 0:03:00]}  a6 {[%clk 0:03:00]} 7. O-O {[%clk 0:03:00]}  Nf6 {[%clk 0:03:00]} 8. Be3 {[%clk 0:03:00]}  Bb4 {[%clk 0:03:00]} 9. Nxc6 {[%clk 0:02:52]}  bxc6 {[%clk 0:03:00]} 10. Qd4 {[%clk 0:02:49]}  c5 {[%clk 0:02:47]} 11. Qd3 {[%clk 0:02:48]}  Bb7 {[%clk 0:02:44]} 12. Bf3 {[%clk 0:02:44]}  c4 {[%clk 0:02:41]} 13. Qd4 {[%clk 0:01:10]}  Bd6 {[%clk 0:02:40]} 14. g3 {[%clk 0:00:56]}  Be5 {[%clk 0:02:33]} 15. Qd2 {[%clk 0:00:49]}  O-O {[%clk 0:02:20]} 16. Bd4 {[%clk 0:00:44]}  Rab8 {[%clk 0:02:16]} 17. Bg2 {[%clk 0:00:42]}  Bc6 {[%clk 0:02:13]} 18. b3 {[%clk 0:00:39]}  Qa5 {[%clk 0:01:58]} 19. Rad1 {[%clk 0:00:35]}  Rfc8 {[%clk 0:01:57]} 20. f4 {[%clk 0:00:15]}  Bxd4+ {[%clk 0:01:53]} 21. Qxd4 {[%clk 0:00:16]}  Ba8 {[%clk 0:01:47]} 22. e5 {[%clk 0:00:13]}  Bxg2 {[%clk 0:01:41]} 23. Kxg2 {[%clk 0:00:14]}  Ng4 {[%clk 0:01:41]} 24. h3 {[%clk 0:00:05]}  Nh6 {[%clk 0:01:28]} 25. Ne4 {[%clk 0:00:02]}  cxb3 {[%clk 0:01:24]} 26. cxb3 {[%clk 0:00:03]}  Nf5 {[%clk 0:01:16]} 27. Rf2 {[%clk 0:00:04]}  Nxd4 {[%clk 0:01:15]} 28. Rxd4 {[%clk 0:00:05]}  Rc1 {[%clk 0:01:04]} 29. Rxd7 {[%clk 0:00:03]}  Qe1 {[%clk 0:01:03]} 30. g4 {[%clk 0:00:02]} 0-1


[Site "https://www.chess.com"]

[Event "Titled Tuesday Blitz February 01 B 2022"]
[White "Lopez Mulet, Inigo"]
[Black "Corrales Jimenez, Fidel"]
[WhiteFideId "22235620"]
[BlackFideId "3506690"]
[WhiteElo "2315"]
[BlackElo "2541"]
[Result "0-1"]
[Round "08"]
[TimeControl "180+1"]
[Date "2022.02.01"]
[WhiteClock "0:01:17"]
[BlackClock "0:02:08"]

1. c4 {[%clk 0:03:00]}  e5 {[%clk 0:02:59]} 2. g3 {[%clk 0:03:00]}  Nc6 {[%clk 0:03:00]} 3. Bg2 {[%clk 0:03:00]}  Nf6 {[%clk 0:03:01]} 4. Nc3 {[%clk 0:03:01]}  Bb4 {[%clk 0:02:59]} 5. Nd5 {[%clk 0:03:01]}  Nxd5 {[%clk 0:02:56]} 6. cxd5 {[%clk 0:03:02]}  Ne7 {[%clk 0:02:56]} 7. a3 {[%clk 0:03:00]}  Bd6 {[%clk 0:02:56]} 8. e3 {[%clk 0:03:00]}  c6 {[%clk 0:02:56]} 9. dxc6 {[%clk 0:02:59]}  dxc6 {[%clk 0:02:57]} 10. Ne2 {[%clk 0:02:59]}  O-O {[%clk 0:02:56]} 11. O-O {[%clk 0:03:00]}  Bg4 {[%clk 0:02:52]} 12. h3 {[%clk 0:02:59]}  Bh5 {[%clk 0:02:52]} 13. Re1 {[%clk 0:02:48]}  Qd7 {[%clk 0:02:52]} 14. Qc2 {[%clk 0:02:47]}  Rad8 {[%clk 0:02:47]} 15. Nc3 {[%clk 0:02:46]}  f5 {[%clk 0:02:45]} 16. b4 {[%clk 0:02:46]}  Ng6 {[%clk 0:02:43]} 17. Bb2 {[%clk 0:02:45]}  e4 {[%clk 0:02:43]} 18. Ne2 {[%clk 0:02:43]}  Bxe2 {[%clk 0:02:36]} 19. Rxe2 {[%clk 0:02:43]}  Be5 {[%clk 0:02:37]} 20. Rd1 {[%clk 0:02:33]}  Qd3 {[%clk 0:02:35]} 21. Qxd3 {[%clk 0:01:34]}  exd3 {[%clk 0:02:36]} 22. Ree1 {[%clk 0:01:33]}  Bxb2 {[%clk 0:02:36]} 23. a4 {[%clk 0:01:34]}  Ne5 {[%clk 0:02:30]} 24. Rb1 {[%clk 0:01:29]}  Nc4 {[%clk 0:02:28]} 25. Red1 {[%clk 0:01:29]}  a6 {[%clk 0:02:26]} 26. b5 {[%clk 0:01:29]}  axb5 {[%clk 0:02:25]} 27. axb5 {[%clk 0:01:30]}  cxb5 {[%clk 0:02:26]} 28. Bxb7 {[%clk 0:01:30]}  Rd6 {[%clk 0:02:25]} 29. Bg2 {[%clk 0:01:27]}  Rf7 {[%clk 0:02:20]} 30. Kf1 {[%clk 0:01:22]}  g5 {[%clk 0:02:19]} 31. Ke1 {[%clk 0:01:22]}  h5 {[%clk 0:02:17]} 32. Bf3 {[%clk 0:01:21]}  g4 {[%clk 0:02:17]} 33. Bg2 {[%clk 0:01:20]}  Kg7 {[%clk 0:02:16]} 34. hxg4 {[%clk 0:01:20]}  hxg4 {[%clk 0:02:17]} 35. Kf1 {[%clk 0:01:20]}  Kf6 {[%clk 0:02:16]} 36. Kg1 {[%clk 0:01:20]}  Ke5 {[%clk 0:02:16]} 37. Ba8 {[%clk 0:01:20]}  Ra7 {[%clk 0:02:15]} 38. Bg2 {[%clk 0:01:20]}  b4 {[%clk 0:02:13]} 39. f4+ {[%clk 0:01:18]}  gxf3 {[%clk 0:02:13]} 40. Bxf3 {[%clk 0:01:19]}  b3 {[%clk 0:02:13]} 41. Kf2 {[%clk 0:01:19]}  Ra2 {[%clk 0:02:10]} 42. g4 {[%clk 0:01:17]}  Na3 {[%clk 0:02:08]} 43. gxf5 {[%clk 0:01:16]}  Nxb1 {[%clk 0:02:08]} 44. Rxb1 {[%clk 0:01:17]} 0-1


[Site "https://www.chess.com"]

[Event "Titled Tuesday Blitz February 01 B 2022"]
[White "Manukyan, Artyom"]
[Black "Garcia Martin, Marta"]
[WhiteFideId "13305786"]
[BlackFideId "32084030"]
[WhiteElo "2034"]
[BlackElo "2102"]
[Result "0-1"]
[Round "08"]
[TimeControl "180+1"]
[Date "2022.02.01"]
[WhiteClock "0:00:05"]
[BlackClock "0:00:09"]

1. e4 {[%clk 0:03:00]}  b6 {[%clk 0:02:59]} 2. Nc3 {[%clk 0:02:59]}  Bb7 {[%clk 0:02:59]} 3. d4 {[%clk 0:02:49]}  e6 {[%clk 0:03:00]} 4. a3 {[%clk 0:02:49]}  Nf6 {[%clk 0:02:59]} 5. Bd3 {[%clk 0:02:48]}  d5 {[%clk 0:02:58]} 6. e5 {[%clk 0:02:48]}  Nfd7 {[%clk 0:02:58]} 7. Nce2 {[%clk 0:02:47]}  c5 {[%clk 0:02:57]} 8. c3 {[%clk 0:02:46]}  Ba6 {[%clk 0:02:58]} 9. f4 {[%clk 0:02:45]}  Bxd3 {[%clk 0:02:47]} 10. Qxd3 {[%clk 0:02:46]}  g6 {[%clk 0:02:41]} 11. Nf3 {[%clk 0:02:45]}  Be7 {[%clk 0:02:41]} 12. O-O {[%clk 0:02:43]}  Qc8 {[%clk 0:02:39]} 13. Be3 {[%clk 0:02:40]}  Qa6 {[%clk 0:02:39]} 14. Qd2 {[%clk 0:02:41]}  Nc6 {[%clk 0:02:35]} 15. b4 {[%clk 0:02:38]}  O-O {[%clk 0:02:33]} 16. Rfb1 {[%clk 0:02:29]}  Qc4 {[%clk 0:02:20]} 17. Re1 {[%clk 0:01:38]}  a5 {[%clk 0:02:14]} 18. Qc2 {[%clk 0:01:18]}  axb4 {[%clk 0:01:49]} 19. Nd2 {[%clk 0:01:02]}  Qb5 {[%clk 0:01:46]} 20. cxb4 {[%clk 0:00:55]}  cxb4 {[%clk 0:01:45]} 21. a4 {[%clk 0:00:55]}  Nxd4 {[%clk 0:01:30]} 22. Nxd4 {[%clk 0:00:52]}  Qa6 {[%clk 0:01:30]} 23. N2b3 {[%clk 0:00:46]}  Rfc8 {[%clk 0:01:28]} 24. Qe2 {[%clk 0:00:46]}  Rc3 {[%clk 0:01:21]} 25. Qxa6 {[%clk 0:00:41]}  Rxa6 {[%clk 0:01:22]} 26. Bd2 {[%clk 0:00:41]}  Rc4 {[%clk 0:01:18]} 27. Rec1 {[%clk 0:00:30]}  Nc5 {[%clk 0:01:18]} 28. Nxc5 {[%clk 0:00:10]}  Bxc5 {[%clk 0:01:13]} 29. Rxc4 {[%clk 0:00:06]}  dxc4 {[%clk 0:01:14]} 30. Be3 {[%clk 0:00:06]}  b5 {[%clk 0:01:07]} 31. a5 {[%clk 0:00:05]}  b3 {[%clk 0:01:07]} 32. Kf2 {[%clk 0:00:05]}  b2 {[%clk 0:01:05]} 33. Rb1 {[%clk 0:00:05]}  c3 {[%clk 0:01:06]} 34. Nc2 {[%clk 0:00:02]}  Be7 {[%clk 0:00:48]} 35. Ke2 {[%clk 0:00:02]}  Rxa5 {[%clk 0:00:46]} 36. Kd3 {[%clk 0:00:02]}  b4 {[%clk 0:00:45]} 37. Kc4 {[%clk 0:00:01]}  Kf8 {[%clk 0:00:28]} 38. Kb3 {[%clk 0:00:02]}  g5 {[%clk 0:00:22]} 39. fxg5 {[%clk 0:00:01]}  Rxe5 {[%clk 0:00:20]} 40. Bd4 {[%clk 0:00:02]}  Rxg5 {[%clk 0:00:19]} 41. Bb6 {[%clk 0:00:02]}  Rxg2 {[%clk 0:00:18]} 42. Ba5 {[%clk 0:00:02]}  Rxh2 {[%clk 0:00:18]} 43. Bxb4 {[%clk 0:00:03]}  Bxb4 {[%clk 0:00:16]} 44. Nxb4 {[%clk 0:00:04]}  Rh3 {[%clk 0:00:15]} 45. Nc2 {[%clk 0:00:01]}  h5 {[%clk 0:00:15]} 46. Nd4 {[%clk 0:00:01]}  h4 {[%clk 0:00:14]} 47. Ne2 {[%clk 0:00:02]}  Rh2 {[%clk 0:00:09]} 48. Nxc3 {[%clk 0:00:02]}  h3 {[%clk 0:00:10]} 49. Ne4 {[%clk 0:00:02]}  Rg2 {[%clk 0:00:09]} 50. Kc3 {[%clk 0:00:03]}  h2 {[%clk 0:00:09]} 51. Nd2 {[%clk 0:00:03]}  Rg1 {[%clk 0:00:09]} 52. Rxb2 {[%clk 0:00:03]}  h1=Q {[%clk 0:00:09]} 53. Rb8+ {[%clk 0:00:04]}  Ke7 {[%clk 0:00:10]} 54. Rb7+ {[%clk 0:00:05]}  Kf6 {[%clk 0:00:09]} 0-1


[Site "https://www.chess.com"]

[Event "Titled Tuesday Blitz February 01 B 2022"]
[White "Mirzoev, Azer"]
[Black "Solon, Nathan"]
[WhiteFideId "13400304"]
[BlackFideId "2017229"]
[WhiteElo "2525"]
[BlackElo "2549"]
[Result "1/2-1/2"]
[Round "08"]
[TimeControl "180+1"]
[Date "2022.02.01"]
[WhiteClock "0:00:06"]
[BlackClock "0:00:03"]

1. Nf3 {[%clk 0:03:00]}  d5 {[%clk 0:02:57]} 2. c4 {[%clk 0:02:59]}  e6 {[%clk 0:02:56]} 3. b3 {[%clk 0:02:58]}  d4 {[%clk 0:02:49]} 4. Bb2 {[%clk 0:02:57]}  c5 {[%clk 0:02:49]} 5. e3 {[%clk 0:02:55]}  Nc6 {[%clk 0:02:49]} 6. exd4 {[%clk 0:02:55]}  cxd4 {[%clk 0:02:50]} 7. g3 {[%clk 0:02:52]}  Nf6 {[%clk 0:02:49]} 8. Bg2 {[%clk 0:02:52]}  Be7 {[%clk 0:02:44]} 9. O-O {[%clk 0:02:52]}  O-O {[%clk 0:02:43]} 10. Re1 {[%clk 0:02:53]}  a5 {[%clk 0:02:36]} 11. Na3 {[%clk 0:02:52]}  Re8 {[%clk 0:02:31]} 12. Nb5 {[%clk 0:02:51]}  Bc5 {[%clk 0:02:30]} 13. a3 {[%clk 0:02:47]}  e5 {[%clk 0:02:14]} 14. d3 {[%clk 0:02:47]}  h6 {[%clk 0:02:08]} 15. h3 {[%clk 0:02:42]}  Bf5 {[%clk 0:02:06]} 16. Nh2 {[%clk 0:02:29]}  Qd7 {[%clk 0:02:05]} 17. h4 {[%clk 0:02:25]}  Rad8 {[%clk 0:02:03]} 18. Qc2 {[%clk 0:01:58]}  e4 {[%clk 0:02:01]} 19. dxe4 {[%clk 0:01:57]}  d3 {[%clk 0:02:01]} 20. Qc3 {[%clk 0:01:54]}  d2 {[%clk 0:01:47]} 21. Red1 {[%clk 0:01:40]}  Bxe4 {[%clk 0:01:45]} 22. Bxe4 {[%clk 0:01:40]}  Rxe4 {[%clk 0:01:35]} 23. Qf3 {[%clk 0:01:27]}  Ne5 {[%clk 0:01:12]} 24. Bxe5 {[%clk 0:01:26]}  Rxe5 {[%clk 0:01:13]} 25. Ra2 {[%clk 0:01:04]}  Rf5 {[%clk 0:01:08]} 26. Raxd2 {[%clk 0:01:00]}  Rxf3 {[%clk 0:00:41]} 27. Rxd7 {[%clk 0:00:59]}  Rxd7 {[%clk 0:00:40]} 28. Rxd7 {[%clk 0:00:56]}  Rxg3+ {[%clk 0:00:38]} 29. Kf1 {[%clk 0:00:53]}  Rxb3 {[%clk 0:00:36]} 30. Rxb7 {[%clk 0:00:36]}  Ne4 {[%clk 0:00:36]} 31. Ng4 {[%clk 0:00:32]}  h5 {[%clk 0:00:31]} 32. Ne5 {[%clk 0:00:26]}  f6 {[%clk 0:00:30]} 33. Rb8+ {[%clk 0:00:18]}  Kh7 {[%clk 0:00:30]} 34. Nd7 {[%clk 0:00:18]}  Bxa3 {[%clk 0:00:24]} 35. Nxa3 {[%clk 0:00:12]}  Rxa3 {[%clk 0:00:25]} 36. Nf8+ {[%clk 0:00:12]}  Kg8 {[%clk 0:00:22]} 37. Ne6+ {[%clk 0:00:10]}  Kf7 {[%clk 0:00:22]} 38. Nf4 {[%clk 0:00:10]}  Nd2+ {[%clk 0:00:19]} 39. Ke2 {[%clk 0:00:08]}  Nxc4 {[%clk 0:00:19]} 40. Rb7+ {[%clk 0:00:08]}  Ke8 {[%clk 0:00:16]} 41. Nxh5 {[%clk 0:00:09]}  Ne5 {[%clk 0:00:13]} 42. Nxg7+ {[%clk 0:00:08]}  Kd8 {[%clk 0:00:14]} 43. h5 {[%clk 0:00:08]}  Rh3 {[%clk 0:00:14]} 44. Ra7 {[%clk 0:00:07]}  Nc6 {[%clk 0:00:13]} 45. Ra6 {[%clk 0:00:05]}  Kc7 {[%clk 0:00:12]} 46. Ra8 {[%clk 0:00:04]}  Kb7 {[%clk 0:00:12]} 47. Rf8 {[%clk 0:00:03]}  a4 {[%clk 0:00:12]} 48. Rxf6 {[%clk 0:00:02]}  a3 {[%clk 0:00:12]} 49. Rf4 {[%clk 0:00:02]}  Kb6 {[%clk 0:00:08]} 50. Ra4 {[%clk 0:00:02]}  Kb5 {[%clk 0:00:08]} 51. Ra8 {[%clk 0:00:02]}  Na5 {[%clk 0:00:08]} 52. Rb8+ {[%clk 0:00:02]}  Ka4 {[%clk 0:00:08]} 53. Rb1 {[%clk 0:00:02]}  a2 {[%clk 0:00:08]} 54. Ra1 {[%clk 0:00:02]}  Ka3 {[%clk 0:00:09]} 55. f4 {[%clk 0:00:02]}  Nc4 {[%clk 0:00:07]} 56. Kf2 {[%clk 0:00:02]}  Kb2 {[%clk 0:00:07]} 57. Rxa2+ {[%clk 0:00:02]}  Kxa2 {[%clk 0:00:08]} 58. Kg2 {[%clk 0:00:03]}  Rh4 {[%clk 0:00:07]} 59. Kg3 {[%clk 0:00:03]}  Rh1 {[%clk 0:00:07]} 60. f5 {[%clk 0:00:03]}  Rg1+ {[%clk 0:00:07]} 61. Kf4 {[%clk 0:00:03]}  Rxg7 {[%clk 0:00:08]} 62. f6 {[%clk 0:00:03]}  Rh7 {[%clk 0:00:08]} 63. Kg5 {[%clk 0:00:04]}  Ne5 {[%clk 0:00:07]} 64. h6 {[%clk 0:00:04]}  Kb3 {[%clk 0:00:07]} 65. Kf5 {[%clk 0:00:04]}  Rxh6 {[%clk 0:00:05]} 66. Kxe5 {[%clk 0:00:04]}  Kc4 {[%clk 0:00:05]} 67. Ke6 {[%clk 0:00:04]}  Kd4 {[%clk 0:00:05]} 68. Ke7 {[%clk 0:00:05]}  Ke5 {[%clk 0:00:05]} 69. f7 {[%clk 0:00:06]}  Rh7 {[%clk 0:00:06]} 70. Ke8 {[%clk 0:00:06]}  Rxf7 {[%clk 0:00:03]} 71. Kxf7 {[%clk 0:00:06]} 1/2-1/2


[Site "https://www.chess.com"]

[Event "Titled Tuesday Blitz February 01 B 2022"]
[White "Muradli, Mahammad"]
[Black "Murzin, Volodar"]
[WhiteFideId "13409301"]
[BlackFideId "44155573"]
[WhiteElo "2645"]
[BlackElo "2585"]
[Result "1-0"]
[Round "08"]
[TimeControl "180+1"]
[Date "2022.02.01"]
[WhiteClock "0:00:06"]
[BlackClock "0:00:02"]

1. Nf3 {[%clk 0:03:00]}  d5 {[%clk 0:02:57]} 2. e3 {[%clk 0:02:59]}  c5 {[%clk 0:02:47]} 3. c4 {[%clk 0:02:54]}  Nf6 {[%clk 0:02:45]} 4. b3 {[%clk 0:02:53]}  Nc6 {[%clk 0:02:45]} 5. Bb2 {[%clk 0:02:54]}  Bg4 {[%clk 0:02:46]} 6. cxd5 {[%clk 0:02:53]}  Nxd5 {[%clk 0:02:44]} 7. Bb5 {[%clk 0:02:54]}  Nb4 {[%clk 0:02:40]} 8. O-O {[%clk 0:02:38]}  a6 {[%clk 0:02:38]} 9. Be2 {[%clk 0:02:39]}  e6 {[%clk 0:02:34]} 10. d3 {[%clk 0:02:34]}  Bxf3 {[%clk 0:02:28]} 11. Bxf3 {[%clk 0:02:34]}  Qxd3 {[%clk 0:02:28]} 12. Bxc6+ {[%clk 0:02:34]}  bxc6 {[%clk 0:02:27]} 13. Na3 {[%clk 0:02:29]}  Qxd1 {[%clk 0:01:56]} 14. Rfxd1 {[%clk 0:02:24]}  Rd8 {[%clk 0:01:56]} 15. Rxd8+ {[%clk 0:02:12]}  Kxd8 {[%clk 0:01:57]} 16. Nc4 {[%clk 0:02:13]}  f6 {[%clk 0:01:50]} 17. a3 {[%clk 0:02:02]}  Nd5 {[%clk 0:01:49]} 18. Rd1 {[%clk 0:02:03]}  Kc7 {[%clk 0:01:48]} 19. e4 {[%clk 0:01:45]}  Nf4 {[%clk 0:01:42]} 20. Kf1 {[%clk 0:01:37]}  e5 {[%clk 0:00:23]} 21. Bc3 {[%clk 0:01:31]}  Ne6 {[%clk 0:00:19]} 22. Ba5+ {[%clk 0:01:30]}  Kc8 {[%clk 0:00:12]} 23. Nb6+ {[%clk 0:01:31]}  Kb8 {[%clk 0:00:13]} 24. Rd7 {[%clk 0:01:30]}  c4 {[%clk 0:00:14]} 25. Nxc4 {[%clk 0:01:20]}  Bc5 {[%clk 0:00:13]} 26. b4 {[%clk 0:01:14]}  Kc8 {[%clk 0:00:08]} 27. Rf7 {[%clk 0:01:08]}  Rf8 {[%clk 0:00:05]} 28. bxc5 {[%clk 0:01:06]}  Rxf7 {[%clk 0:00:06]} 29. Nd6+ {[%clk 0:01:07]}  Kd7 {[%clk 0:00:07]} 30. Nxf7 {[%clk 0:01:08]}  Nxc5 {[%clk 0:00:08]} 31. f3 {[%clk 0:01:01]}  Nb7 {[%clk 0:00:05]} 32. Bb6 {[%clk 0:00:19]}  Ke7 {[%clk 0:00:05]} 33. Nxe5 {[%clk 0:00:12]}  fxe5 {[%clk 0:00:06]} 34. Ke2 {[%clk 0:00:13]}  Kd6 {[%clk 0:00:06]} 35. Be3 {[%clk 0:00:11]}  c5 {[%clk 0:00:05]} 36. Kd3 {[%clk 0:00:11]}  Kc6 {[%clk 0:00:05]} 37. Kc4 {[%clk 0:00:11]}  Nd6+ {[%clk 0:00:06]} 38. Kc3 {[%clk 0:00:12]}  Nb5+ {[%clk 0:00:06]} 39. Kb3 {[%clk 0:00:11]}  Nd6 {[%clk 0:00:06]} 40. a4 {[%clk 0:00:10]}  Nc8 {[%clk 0:00:07]} 41. Bd2 {[%clk 0:00:08]}  Nb6 {[%clk 0:00:05]} 42. Ba5 {[%clk 0:00:08]}  Nc8 {[%clk 0:00:05]} 43. Bc3 {[%clk 0:00:07]}  Kd6 {[%clk 0:00:05]} 44. g3 {[%clk 0:00:04]}  g6 {[%clk 0:00:05]} 45. h4 {[%clk 0:00:04]}  Nb6 {[%clk 0:00:03]} 46. Bb2 {[%clk 0:00:04]}  Nc8 {[%clk 0:00:02]} 47. Ba1 {[%clk 0:00:02]}  Nb6 {[%clk 0:00:02]} 48. Bc3 {[%clk 0:00:02]}  Nc8 {[%clk 0:00:02]} 49. f4 {[%clk 0:00:03]}  exf4 {[%clk 0:00:02]} 50. gxf4 {[%clk 0:00:04]}  Kc6 {[%clk 0:00:02]} 51. Be5 {[%clk 0:00:03]}  Ne7 {[%clk 0:00:01]} 52. Kc4 {[%clk 0:00:03]}  Nc8 {[%clk 0:00:02]} 53. a5 {[%clk 0:00:04]}  Na7 {[%clk 0:00:03]} 54. f5 {[%clk 0:00:03]}  gxf5 {[%clk 0:00:03]} 55. exf5 {[%clk 0:00:04]}  Nb5 {[%clk 0:00:04]} 56. f6 {[%clk 0:00:04]}  Kd7 {[%clk 0:00:04]} 57. Kxc5 {[%clk 0:00:05]}  Ke6 {[%clk 0:00:04]} 58. Bb2 {[%clk 0:00:05]}  Nd6 {[%clk 0:00:04]} 59. Kc6 {[%clk 0:00:05]}  Nc4 {[%clk 0:00:03]} 60. Bc3 {[%clk 0:00:05]}  h5 {[%clk 0:00:02]} 61. Kb7 {[%clk 0:00:04]}  Nxa5+ {[%clk 0:00:02]} 62. Bxa5 {[%clk 0:00:05]}  Kxf6 {[%clk 0:00:02]} 63. Kxa6 {[%clk 0:00:06]} 1-0


[Site "https://www.chess.com"]

[Event "Titled Tuesday Blitz February 01 B 2022"]
[White "Nesterov, Arseniy"]
[Black "Steinberg, Nitzan"]
[WhiteFideId "24198455"]
[BlackFideId "2801795"]
[WhiteElo "2489"]
[BlackElo "2440"]
[Result "0-1"]
[Round "08"]
[TimeControl "180+1"]
[Date "2022.02.01"]
[WhiteClock "0:00:01"]
[BlackClock "0:00:04"]

1. d4 {[%clk 0:03:00]}  d5 {[%clk 0:02:59]} 2. c4 {[%clk 0:03:01]}  c6 {[%clk 0:03:00]} 3. Nc3 {[%clk 0:03:00]}  Nf6 {[%clk 0:03:00]} 4. e3 {[%clk 0:02:54]}  e6 {[%clk 0:03:00]} 5. Nf3 {[%clk 0:02:54]}  Nbd7 {[%clk 0:03:01]} 6. Bd3 {[%clk 0:02:55]}  dxc4 {[%clk 0:03:01]} 7. Bxc4 {[%clk 0:02:55]}  b5 {[%clk 0:03:02]} 8. Bd3 {[%clk 0:02:56]}  Bb7 {[%clk 0:03:02]} 9. O-O {[%clk 0:02:56]}  a6 {[%clk 0:03:02]} 10. e4 {[%clk 0:02:56]}  c5 {[%clk 0:03:03]} 11. d5 {[%clk 0:02:57]}  Qc7 {[%clk 0:03:03]} 12. Bc2 {[%clk 0:02:34]}  c4 {[%clk 0:03:01]} 13. dxe6 {[%clk 0:02:32]}  fxe6 {[%clk 0:03:01]} 14. Ng5 {[%clk 0:02:32]}  Nc5 {[%clk 0:03:01]} 15. Be3 {[%clk 0:02:30]}  h6 {[%clk 0:02:51]} 16. Nxe6 {[%clk 0:02:29]}  Nxe6 {[%clk 0:02:46]} 17. e5 {[%clk 0:02:29]}  Rd8 {[%clk 0:02:28]} 18. Bg6+ {[%clk 0:02:24]}  Ke7 {[%clk 0:02:25]} 19. exf6+ {[%clk 0:02:16]}  gxf6 {[%clk 0:02:26]} 20. Qh5 {[%clk 0:02:15]}  Qe5 {[%clk 0:02:20]} 21. Rfe1 {[%clk 0:01:59]}  Qxh5 {[%clk 0:01:45]} 22. Bxh5 {[%clk 0:02:00]}  f5 {[%clk 0:01:45]} 23. Bf4 {[%clk 0:01:40]}  Bg7 {[%clk 0:01:37]} 24. Re2 {[%clk 0:01:30]}  Be4 {[%clk 0:01:34]} 25. Bg3 {[%clk 0:01:24]}  Bd3 {[%clk 0:01:24]} 26. Re3 {[%clk 0:01:09]}  Bd4 {[%clk 0:01:10]} 27. Bh4+ {[%clk 0:01:10]}  Kd7 {[%clk 0:01:10]} 28. Bxd8 {[%clk 0:00:21]}  Bxe3 {[%clk 0:01:09]} 29. Bf6 {[%clk 0:00:22]}  Rf8 {[%clk 0:01:08]} 30. fxe3 {[%clk 0:00:21]}  Rxf6 {[%clk 0:01:08]} 31. Rd1 {[%clk 0:00:17]}  Nc5 {[%clk 0:01:05]} 32. Nd5 {[%clk 0:00:10]}  Rd6 {[%clk 0:01:03]} 33. Nf4 {[%clk 0:00:09]}  Na4 {[%clk 0:00:54]} 34. b3 {[%clk 0:00:03]}  Nc3 {[%clk 0:00:53]} 35. Rd2 {[%clk 0:00:04]}  Ne4 {[%clk 0:00:54]} 36. Rd1 {[%clk 0:00:04]}  Bc2 {[%clk 0:00:37]} 37. Rxd6+ {[%clk 0:00:02]}  Kxd6 {[%clk 0:00:38]} 38. bxc4 {[%clk 0:00:03]}  bxc4 {[%clk 0:00:39]} 39. Kf1 {[%clk 0:00:03]}  c3 {[%clk 0:00:37]} 40. Ke1 {[%clk 0:00:03]}  Bb1 {[%clk 0:00:37]} 41. Bf3 {[%clk 0:00:03]}  Bxa2 {[%clk 0:00:26]} 42. Bxe4 {[%clk 0:00:03]}  fxe4 {[%clk 0:00:27]} 43. Ne2 {[%clk 0:00:04]}  c2 {[%clk 0:00:20]} 44. Kd2 {[%clk 0:00:04]}  Bc4 {[%clk 0:00:13]} 45. Nd4 {[%clk 0:00:03]}  Bd3 {[%clk 0:00:13]} 46. Nf5+ {[%clk 0:00:03]}  Kc5 {[%clk 0:00:12]} 47. Nxh6 {[%clk 0:00:03]}  a5 {[%clk 0:00:09]} 48. Nf5 {[%clk 0:00:03]}  Kb4 {[%clk 0:00:08]} 49. Nd4 {[%clk 0:00:03]}  Ka3 {[%clk 0:00:07]} 50. Kc1 {[%clk 0:00:02]}  a4 {[%clk 0:00:04]} 51. Nxc2+ {[%clk 0:00:02]}  Kb3 {[%clk 0:00:04]} 52. Nd4+ {[%clk 0:00:02]}  Kc3 {[%clk 0:00:04]} 53. Ne6 {[%clk 0:00:01]}  a3 {[%clk 0:00:04]} 0-1


[Site "https://www.chess.com"]